[Event "Romanian Championship Open 2025"]
[Site "Craiova"]
[Date "2025.02.17"]
[Round "3.1"]
[White "Nisipeanu, Liviu-Dieter"]
[Black "Filip, Lucian-Ioan"]
[Result "1/2-1/2"]
[Annotator "ChessBase"]
[ECO "A36"]
[WhiteElo "2596"]
[BlackElo "2328"]
[PlyCount "43"]
[EventDate "2025.02.12"]
[EventType "swiss"]
[EventCountry "ROU"]
[SourceTitle "playchess.com"]
[Source "ChessBase"]
[SourceQuality "1"]
[TimeControl "40/5400+30:900+30"]

1. c4 {[%emt 0:00:03]} Nf6 {[%emt 0:00:19]} 2. Nc3 {[%emt 0:00:08]} g6 {[%emt 0:01:04]} 3. e4 {[%emt 0:05:01]} d6 {[%emt 0:00:04]} 4. g3 {[%emt 0:03:14]} Bg7 {[%emt 0:01:05]} 5. Bg2 {[%emt 0:00:06]} c5 {[%emt 0:06:52]} 6. Nge2 {[%emt 0:00:08]} Nc6 {[%emt 0:00:19]} 7. d3 {[%emt 0:00:19]} O-O {[%emt 0:07:10]} 8. O-O {[%emt 0:00:17]} Ne8 {[%emt 0:00:18]} 9. Be3 {[%emt 0:02:37]} Nd4 {[%emt 0:04:09]} 10. Rb1 {[%emt 0:01:22]} a5 {[%emt 0:09:53]} 11. Nb5 {[%emt 0:13:24]} Nxe2+ {[%emt 0:14:39]} 12. Qxe2 {[%emt 0:00:05]} Bd7 {[%emt 0:00:20]} 13. a4 {[%emt 0:10:51]} Nc7 {[%emt 0:02:38]} 14. e5 {[%emt 0:06:59]} Bc6 {[%emt 0:05:27]} 15. exd6 {[%emt 0:11:34]} exd6 {[%emt 0:00:13]} 16. Bxc6 {[%emt 0:00:06]} bxc6 {[%emt 0:00:04]} 17. Nxc7 {[%emt 0:00:04]} Qxc7 {[%emt 0:00:06]} 18. Qf3 {[%emt 0:00:03]} Rab8 {[%emt 0:05:03]} 19. b3 {[%emt 0:00:11]} Rfe8 {[%emt 0:05:15]} 20. Rfe1 {[%emt 0:03:31]} Bc3 {[%emt 0:01:10]} 21. Re2 {[%emt 0:00:42]} Re6 {[%emt 0:02:37]} 22. Bh6 {[%emt 0:11:41]} 1/2-1/2

[Event "Romanian Championship Open 2025"]
[Site "Craiova"]
[Date "2025.02.17"]
[Round "3.2"]
[White "Cnejev, Vladimir-Alexandru"]
[Black "Gavrilescu, David"]
[Result "1/2-1/2"]
[Annotator "ChessBase"]
[ECO "B51"]
[WhiteElo "2300"]
[BlackElo "2543"]
[PlyCount "184"]
[EventDate "2025.02.12"]
[EventType "swiss"]
[EventCountry "ROU"]
[SourceTitle "playchess.com"]
[Source "ChessBase"]
[SourceQuality "1"]
[TimeControl "40/5400+30:900+30"]

1. e4 {[%emt 0:00:03]} c5 {[%emt 0:00:22]} 2. Nf3 {[%emt 0:00:09]} d6 {[%emt 0:00:36]} 3. Bb5+ {[%emt 0:00:30]} Nd7 {[%emt 0:00:31]} 4. O-O {[%emt 0:00:13]} a6 {[%emt 0:00:43]} 5. Bd3 {[%emt 0:00:10]} Ngf6 {[%emt 0:00:34]} 6. Re1 {[%emt 0:00:19]} g6 {[%emt 0:00:41]} 7. c3 {[%emt 0:00:26]} Bg7 {[%emt 0:00:22]} 8. Bc2 {[%emt 0:00:21]} O-O {[%emt 0:00:37]} 9. d4 {[%emt 0:00:14]} e5 {[%emt 0:00:35]} 10. dxe5 {[%emt 0:01:36]} Nxe5 {[%emt 0:01:56]} 11. Nxe5 {[%emt 0:00:41]} dxe5 {[%emt 0:00:08]} 12. c4 {[%emt 0:08:37]} Be6 {[%emt 0:32:36]} 13. Qe2 {[%emt 0:18:14]} b5 {[%emt 0:06:19]} 14. cxb5 {[%emt 0:02:57]} axb5 {[%emt 0:00:22]} 15. Qxb5 {[%emt 0:00:26]} c4 {[%emt 0:01:07]} 16. Qb4 {[%emt 0:10:17]} Qc7 {[%emt 0:18:52]} 17. Qc3 {[%emt 0:06:33]} Nh5 {[%emt 0:14:27]} 18. Nd2 {[%emt 0:12:20]} Rfb8 {[%emt 0:05:24]} 19. a3 {[%emt 0:11:17]} Rb7 {[%emt 0:03:27]} 20. Rb1 {[%emt 0:07:38]} Nf4 {[%emt 0:06:22]} 21. g3 {[%emt 0:02:33]} Nd3 {[%emt 0:01:56]} 22. Bxd3 {[%emt 0:00:10]} cxd3 {[%emt 0:00:02]} 23. Qxd3 {[%emt 0:00:16]} Rd8 {[%emt 0:01:51]} 24. Qc3 {[%emt 0:10:33]} Qxc3 {[%emt 0:00:31]} 25. bxc3 {[%emt 0:00:00]} Rc7 {[%emt 0:00:07]} 26. Rb5 {[%emt 0:01:28]} Rxc3 {[%emt 0:00:52]} 27. Bb2 {[%emt 0:02:00]} Rcd3 {[%emt 0:00:51]} 28. Nf1 {[%emt 0:00:36]} f6 {[%emt 0:00:21]} 29. Ne3 {[%emt 0:01:06]} Bh6 {[%emt 0:00:41]} 30. Rb6 {[%emt 0:02:30]} Kf7 {[%emt 0:00:24]} 31. Rb7+ {[%emt 0:01:00]} R8d7 {[%emt 0:00:53]} 32. Rxd7+ {[%emt 0:00:07]} Rxd7 {[%emt 0:00:05]} 33. Kg2 {[%emt 0:01:04]} Rd3 {[%emt 0:00:58]} 34. Rd1 {[%emt 0:00:33]} Rb3 {[%emt 0:00:36]} 35. Bc1 {[%emt 0:00:31]} Bf8 {[%emt 0:01:09]} 36. Rd8 {[%emt 0:00:28]} Rb1 {[%emt 0:00:23]} 37. Bd2 {[%emt 0:00:24]} Bxa3 {[%emt 0:00:05]} 38. Nd5 {[%emt 0:00:34]} Bc5 {[%emt 0:00:36]} 39. Be3 {[%emt 0:00:29]} Bxd5 {[%emt 0:00:38]} 40. exd5 {[%emt 0:00:00]} Bxe3 {[%emt 0:00:00]} 41. fxe3 {[%emt 0:00:33]} Rb2+ {[%emt 0:02:31]} 42. Kg1 {[%emt 0:01:59]} g5 {[%emt 0:06:05]} 43. Rd7+ {[%emt 0:13:59]} Kg6 {[%emt 0:00:12]} 44. d6 {[%emt 0:00:03]} Rd2 {[%emt 0:04:20]} 45. g4 {[%emt 0:01:29]} h5 {[%emt 0:03:34]} 46. h3 {[%emt 0:00:10]} hxg4 {[%emt 0:01:41]} 47. hxg4 {[%emt 0:00:00]} f5 {[%emt 0:00:08]} 48. Rd8 {[%emt 0:01:01]} fxg4 {[%emt 0:01:01]} 49. d7 {[%emt 0:00:10]} Kf7 {[%emt 0:00:10]} 50. Kf1 {[%emt 0:01:12]} g3 {[%emt 0:01:01]} 51. Re8 {[%emt 0:00:26]} Rxd7 {[%emt 0:00:06]} 52. Rxe5 {[%emt 0:00:04]} Kf6 {[%emt 0:00:05]} 53. Re4 {[%emt 0:00:58]} Kf5 {[%emt 0:00:23]} 54. Rd4 {[%emt 0:00:31]} Re7 {[%emt 0:00:10]} 55. Kg2 {[%emt 0:00:27]} Rxe3 {[%emt 0:00:07]} 56. Ra4 {[%emt 0:00:05]} Rb3 {[%emt 0:01:18]} 57. Rc4 {[%emt 0:00:10]} Ra3 {[%emt 0:00:07]} 58. Rb4 {[%emt 0:00:05]} Rd3 {[%emt 0:00:24]} 59. Ra4 {[%emt 0:00:06]} Rb3 {[%emt 0:00:19]} 60. Rc4 {[%emt 0:00:05]} Ra3 {[%emt 0:00:06]} 61. Rb4 {[%emt 0:00:06]} Kg6 {[%emt 0:00:11]} 62. Rg4 {[%emt 0:00:16]} Kh5 {[%emt 0:00:07]} 63. Rxg3 {[%emt 0:00:04]} Ra2+ {[%emt 0:00:06]} 64. Kg1 {[%emt 0:00:05]} Kh4 {[%emt 0:00:04]} 65. Rb3 {[%emt 0:00:04]} Rc2 {[%emt 0:00:08]} 66. Ra3 {[%emt 0:00:04]} Rb2 {[%emt 0:00:12]} 67. Rc3 {[%emt 0:00:04]} g4 {[%emt 0:00:16]} 68. Ra3 {[%emt 0:00:08]} Re2 {[%emt 0:00:29]} 69. Rb3 {[%emt 0:00:10]} Rc2 {[%emt 0:00:13]} 70. Ra3 {[%emt 0:00:03]} Rc4 {[%emt 0:00:15]} 71. Kg2 {[%emt 0:00:32]} Rb4 {[%emt 0:00:25]} 72. Rc3 {[%emt 0:00:04]} g3 {[%emt 0:00:14]} 73. Rc2 {[%emt 0:00:09]} Kg4 {[%emt 0:00:07]} 74. Ra2 {[%emt 0:00:06]} Rc4 {[%emt 0:00:12]} 75. Rb2 {[%emt 0:00:07]} Rf4 {[%emt 0:00:06]} 76. Ra2 {[%emt 0:00:05]} Rc4 {[%emt 0:00:12]} 77. Rb2 {[%emt 0:00:05]} Ra4 {[%emt 0:00:04]} 78. Rc2 {[%emt 0:00:06]} Rf4 {[%emt 0:00:05]} 79. Ra2 {[%emt 0:00:03]} Rf8 {[%emt 0:00:05]} 80. Ra4+ {[%emt 0:00:05]} Rf4 {[%emt 0:00:05]} 81. Rxf4+ {[%emt 0:00:07]} Kxf4 {[%emt 0:00:04]} 82. Kg1 {[%emt 0:00:06]} Kg4 {[%emt 0:00:04]} 83. Kg2 {[%emt 0:00:03]} Kh4 {[%emt 0:00:05]} 84. Kg1 {[%emt 0:00:03]} Kh3 {[%emt 0:00:05]} 85. Kh1 {[%emt 0:00:03]} Kh4 {[%emt 0:00:06]} 86. Kg2 {[%emt 0:00:04]} Kg4 {[%emt 0:00:03]} 87. Kg1 {[%emt 0:00:05]} Kf3 {[%emt 0:00:04]} 88. Kf1 {[%emt 0:00:03]} Ke3 {[%emt 0:00:11]} 89. Kg2 {[%emt 0:00:06]} Kf4 {[%emt 0:00:03]} 90. Kg1 {[%emt 0:00:06]} Kf3 {[%emt 0:00:03]} 91. Kf1 {[%emt 0:00:05]} g2+ {[%emt 0:00:03]} 92. Kg1 {[%emt 0:00:03]} Kg3 {[%emt 0:00:05]} 1/2-1/2

[Event "Romanian Championship Open 2025"]
[Site "Craiova"]
[Date "2025.02.17"]
[Round "3.3"]
[White "Cosma, Ioan"]
[Black "Jianu, Vlad-Cristian"]
[Result "1/2-1/2"]
[Annotator "TA"]
[ECO "E52"]
[WhiteElo "2286"]
[BlackElo "2467"]
[PlyCount "37"]
[EventDate "2025.02.12"]
[EventType "swiss"]
[EventCountry "ROU"]
[SourceTitle "playchess.com"]
[Source "ChessBase"]
[SourceQuality "1"]
[TimeControl "40/5400+30:900+30"]

{[%evp 12,24,15,14,13,7,16,14,8,0,0,0,8,0,12]} 1. d4 {[%emt 0:00:09]} Nf6 {[%emt 0:00:06]} 2. c4 {[%emt 0:00:09]} e6 {[%emt 0:00:05]} 3. Nc3 {[%emt 0:00:08]} Bb4 {[%emt 0:00:15]} 4. e3 {[%emt 0:00:08]} O-O {[%emt 0:00:13]} 5. Bd3 {[%emt 0:00:15]} d5 {[%emt 0:00:09]} 6. Nf3 {[%emt 0:00:12]} b6 {[%emt 0:00:46]} 7. O-O {[%emt 0:01:25] The position is equal.} Ba6 {[%emt 0:01:37] E52: Nimzo-Indian: Rubinstein: 4...0-0 5 Nf3 d5 6 Bd3 b6.} 8. cxd5 {[%emt 0:01:26]} exd5 {[%emt 0:00:51]} 9. Bxa6 {[%emt 0:04:26]} Nxa6 {[%emt 0:00:16]} 10. Qa4 {[%emt 0:01:04]} Qc8 {[%emt 0:00:05]} 11. Bd2 {[%emt 0:01:10]} Re8 {[%emt 0:00:27]} 12. Rac1 {[%emt 0:04:13] 12.Rfc1 is more fashionable.} Qb7 {[%emt 1:31:40] A rather calm draw.   Weighted Error Value: White=0.03 (flawless) /Black=0.03 (flawless)   OK:         	White=3     	Black=2} 13. Ne5 $146 Bd6 14. f4 c5 15. Be1 Ne4 16. Nxe4 dxe4 17. Bc3 b5 18. Qb3 Rac8 19. a3 {½-½ Vakhidov,J (2571)-Janik,I (2511) Titled Tuesday intern op 09th Jul Early blitz 2024 (10)} 1/2-1/2

[Event "Romanian Championship Open 2025"]
[Site "Craiova"]
[Date "2025.02.17"]
[Round "3.4"]
[White "Secheres, Adrian-Simion"]
[Black "Craciun, Sasha-Matei"]
[Result "0-1"]
[Annotator "ChessBase"]
[ECO "D37"]
[WhiteElo "2350"]
[BlackElo "2257"]
[PlyCount "66"]
[EventDate "2025.02.12"]
[EventType "swiss"]
[EventCountry "ROU"]
[SourceTitle "playchess.com"]
[Source "ChessBase"]
[SourceQuality "1"]
[TimeControl "40/5400+30:900+30"]

1. d4 {[%emt 0:01:45]} d5 {[%emt 0:00:24]} 2. c4 {[%emt 0:00:40]} e6 {[%emt 0:00:08]} 3. Nf3 {[%emt 0:00:28]} Nf6 {[%emt 0:00:07]} 4. Nc3 {[%emt 0:00:40]} Be7 {[%emt 0:00:10]} 5. Bf4 {[%emt 0:00:37]} O-O {[%emt 0:00:50]} 6. e3 {[%emt 0:00:39]} c5 {[%emt 0:00:16]} 7. dxc5 {[%emt 0:00:54]} Bxc5 {[%emt 0:00:13]} 8. Qc2 {[%emt 0:00:41]} Nc6 {[%emt 0:00:17]} 9. a3 {[%emt 0:00:29]} Re8 {[%emt 0:00:13]} 10. b4 {[%emt 0:00:37]} Be7 {[%emt 0:04:59]} 11. Rd1 {[%emt 0:01:54]} a5 {[%emt 0:04:10]} 12. b5 {[%emt 0:06:02]} Nb8 {[%emt 0:02:30]} 13. h4 {[%emt 0:08:46]} Bxa3 {[%emt 0:19:02]} 14. h5 {[%emt 0:18:02]} h6 {[%emt 0:12:46]} 15. g4 {[%emt 0:24:30]} Bb4 {[%emt 0:11:18]} 16. Bd3 {[%emt 0:00:42]} Nxg4 {[%emt 0:01:20]} 17. Rg1 {[%emt 0:01:57]} Qf6 {[%emt 0:01:28]} 18. Rxg4 {[%emt 0:05:03]} Qxc3+ {[%emt 0:01:45]} 19. Kf1 {[%emt 0:01:01]} Qxc2 {[%emt 0:00:53]} 20. Bxc2 {[%emt 0:00:06]} e5 {[%emt 0:01:12]} 21. Nxe5 {[%emt 0:00:48]} Bxg4 {[%emt 0:01:55]} 22. Nxg4 {[%emt 0:00:06]} Nd7 {[%emt 0:01:51]} 23. cxd5 {[%emt 0:03:50]} a4 {[%emt 0:09:52]} 24. Bf5 {[%emt 0:01:38]} Nf8 {[%emt 0:02:06]} 25. d6 {[%emt 0:06:24]} a3 {[%emt 0:01:14]} 26. d7 {[%emt 0:01:38]} Red8 {[%emt 0:00:09]} 27. Be5 {[%emt 0:03:05]} a2 {[%emt 0:00:40]} 28. Ke2 {[%emt 0:01:56]} Ne6 {[%emt 0:01:10]} 29. Be4 {[%emt 0:05:04]} Ra5 {[%emt 0:04:00]} 30. Bxb7 {[%emt 0:03:24]} Rxb5 {[%emt 0:00:17]} 31. Ba6 {[%emt 0:01:28]} Rxe5 {[%emt 0:00:50]} 32. Nxe5 {[%emt 0:00:41]} Bc3 {[%emt 0:00:14]} 33. Nc6 {[%emt 0:00:50]} Rxd7 {[%emt 0:00:38]} 0-1

[Event "Romanian Championship Open 2025"]
[Site "Craiova"]
[Date "2025.02.17"]
[Round "3.5"]
[White "Nastase, Robert-Paul"]
[Black "David, Alexandru-Vasile"]
[Result "1/2-1/2"]
[Annotator "RC"]
[ECO "B23"]
[WhiteElo "2259"]
[BlackElo "2331"]
[PlyCount "42"]
[EventDate "2025.02.12"]
[EventType "swiss"]
[EventCountry "ROU"]
[SourceTitle "playchess.com"]
[Source "ChessBase"]
[SourceQuality "1"]
[TimeControl "40/5400+30:900+30"]

1. e4 {[%emt 0:06:44]} c5 {[%emt 0:00:15]} 2. Nc3 {[%emt 0:00:05]} Nc6 {[%emt 0:00:53]} 3. Bb5 {[%emt 0:00:08]} Nd4 {[%emt 0:00:27]} 4. Nf3 {[%emt 0:00:10]} a6 {[%emt 0:00:41]} 5. Bd3 {[%emt 0:00:04]} g6 {[%emt 0:00:46]} 6. Nxd4 {[%emt 0:00:35]} cxd4 {[%emt 0:00:09]} 7. Ne2 {[%emt 0:00:03]} d5 {[%emt 0:04:37]} 8. c3 {[%emt 0:03:13]} dxe4 {[%emt 0:00:19]} 9. Bxe4 {[%emt 0:00:17]} d3 {[%emt 0:00:06]} 10. Qa4+ {[%emt 0:02:39]} Bd7 {[%emt 0:01:08]} 11. Qd4 {[%emt 0:00:09]} Bc6 {[%emt 0:00:06]} 12. Bxc6+ {[%emt 0:24:56]} bxc6 {[%emt 0:03:06]} 13. Qe4 {[%emt 0:00:02]} Qd7 {[%emt 0:00:09]} 14. Nd4 {[%emt 0:00:05]} Rc8 {[%emt 0:00:56]} 15. b4 {[%emt 0:00:03]} Bg7 {[%emt 0:02:23]} 16. Qxd3 {[%emt 0:01:00]} a5 {[%emt 0:00:11]} 17. a3 {[%emt 0:02:28]} axb4 {[%emt 0:00:07]} 18. axb4 {[%emt 0:00:06]} Bxd4 {[%emt 0:00:08]} 19. cxd4 {[%emt 0:06:50]} Nf6 {[%emt 0:02:55]} 20. O-O {[%emt 0:00:05]} Nd5 {[%emt 0:02:10]} 21. Rb1 {[%emt 0:01:11]} Rb8 {[%emt 0:05:20]} 1/2-1/2

[Event "Romanian Championship Open 2025"]
[Site "Craiova"]
[Date "2025.02.17"]
[Round "3.6"]
[White "Negrean, Andrei"]
[Black "Lupulescu, Constantin"]
[Result "0-1"]
[Annotator "ChessBase"]
[ECO "B56"]
[WhiteElo "2224"]
[BlackElo "2603"]
[PlyCount "108"]
[EventDate "2025.02.12"]
[EventType "swiss"]
[EventCountry "ROU"]
[SourceTitle "playchess.com"]
[Source "ChessBase"]
[SourceQuality "1"]
[TimeControl "40/5400+30:900+30"]

1. e4 {[%emt 0:00:03]} c5 {[%emt 0:00:06]} 2. Nf3 {[%emt 0:00:09]} Nc6 {[%emt 0:00:04]} 3. d4 {[%emt 0:00:18]} cxd4 {[%emt 0:00:07]} 4. Nxd4 {[%emt 0:00:07]} Nf6 {[%emt 0:00:08]} 5. Nc3 {[%emt 0:00:13]} d6 {[%emt 0:00:10]} 6. Nd5 {[%emt 0:00:34]} Nxd5 {[%emt 0:04:55]} 7. exd5 {[%emt 0:00:10]} Qa5+ {[%emt 0:00:21]} 8. Bd2 {[%emt 0:00:16]} Qxd5 {[%emt 0:00:17]} 9. Nb5 {[%emt 0:00:12]} Qe6+ {[%emt 0:03:17]} 10. Be2 {[%emt 0:00:16]} Qd7 {[%emt 0:01:02]} 11. c4 {[%emt 0:00:36]} g6 {[%emt 0:16:46]} 12. Bc3 {[%emt 0:13:54]} e5 {[%emt 0:08:31]} 13. f4 {[%emt 0:10:36]} Rb8 {[%emt 0:25:45]} 14. O-O {[%emt 0:43:09]} a6 {[%emt 0:04:19]} 15. Bg4 {[%emt 0:11:52]} Qxg4 {[%emt 0:04:51]} 16. Nc7+ {[%emt 0:01:27]} Kd8 {[%emt 0:02:47]} 17. fxe5 {[%emt 0:00:28]} Qxd1 {[%emt 0:01:33]} 18. Raxd1 {[%emt 0:00:06]} Kxc7 {[%emt 0:01:18]} 19. exd6+ {[%emt 0:02:49]} Bxd6 {[%emt 0:00:15]} 20. Bxh8 {[%emt 0:04:32]} Be6 {[%emt 0:00:24]} 21. Bg7 {[%emt 0:02:54]} Bxc4 {[%emt 0:00:48]} 22. Rf3 {[%emt 0:00:20]} Rg8 {[%emt 0:03:29]} 23. b3 {[%emt 0:01:08]} Bxb3 {[%emt 0:00:55]} 24. Rxb3 {[%emt 0:00:46]} Bc5+ {[%emt 0:01:04]} 25. Kf1 {[%emt 0:00:17]} Rxg7 {[%emt 0:00:04]} 26. g4 {[%emt 0:00:36]} f5 {[%emt 0:01:38]} 27. gxf5 {[%emt 0:00:52]} gxf5 {[%emt 0:02:27]} 28. Rg3 {[%emt 0:00:13]} Rf7 {[%emt 0:00:50]} 29. h4 {[%emt 0:00:22]} Be7 {[%emt 0:03:03]} 30. h5 {[%emt 0:00:13]} f4 {[%emt 0:00:33]} 31. Rg8 {[%emt 0:00:21]} Rf5 {[%emt 0:00:56]} 32. Rg4 {[%emt 0:00:29]} h6 {[%emt 0:02:37]} 33. Re1 {[%emt 0:01:23]} Bg5 {[%emt 0:00:39]} 34. Rg2 {[%emt 0:00:14]} Rc5 {[%emt 0:02:11]} 35. a4 {[%emt 0:00:21]} Rc4 {[%emt 0:02:21]} 36. Ra2 {[%emt 0:00:25]} f3 {[%emt 0:00:52]} 37. Ra3 {[%emt 0:00:26]} Rh4 {[%emt 0:01:09]} 38. Kf2 {[%emt 0:00:45]} Rxh5 {[%emt 0:01:02]} 39. Re4 {[%emt 0:00:43]} Rh3 {[%emt 0:05:00]} 40. Rxf3 {[%emt 0:00:00]} Rxf3+ {[%emt 0:00:00]} 41. Kxf3 {[%emt 0:00:22]} b5 {[%emt 0:00:31]} 42. axb5 {[%emt 0:00:11]} axb5 {[%emt 0:00:04]} 43. Re1 {[%emt 0:01:16]} b4 {[%emt 0:01:34]} 44. Ke4 {[%emt 0:00:20]} Kd6 {[%emt 0:01:46]} 45. Kd3 {[%emt 0:00:31]} Kd5 {[%emt 0:00:15]} 46. Re8 {[%emt 0:00:31]} Bf6 {[%emt 0:02:18]} 47. Rf8 {[%emt 0:01:08]} Bc3 {[%emt 0:01:16]} 48. Rc8 {[%emt 0:00:50]} Ne5+ {[%emt 0:01:24]} 49. Ke3 {[%emt 0:00:45]} Bd4+ {[%emt 0:00:38]} 50. Kf4 {[%emt 0:01:09]} Nd3+ {[%emt 0:00:17]} 51. Kf3 {[%emt 0:00:50]} b3 {[%emt 0:00:20]} 52. Ke2 {[%emt 0:00:19]} b2 {[%emt 0:00:24]} 53. Rb8 {[%emt 0:00:11]} Kc4 {[%emt 0:00:29]} 54. Kd2 {[%emt 0:00:23]} Nb4 {[%emt 0:00:21]} 0-1

[Event "Romanian Championship Open 2025"]
[Site "Craiova"]
[Date "2025.02.17"]
[Round "3.7"]
[White "Parligras, Mircea-Emilian"]
[Black "Prisacaru, Stefan-Emilian"]
[Result "1-0"]
[Annotator "ChessBase"]
[ECO "D35"]
[WhiteElo "2528"]
[BlackElo "2212"]
[PlyCount "89"]
[EventDate "2025.02.12"]
[EventType "swiss"]
[EventCountry "ROU"]
[SourceTitle "playchess.com"]
[Source "ChessBase"]
[SourceQuality "1"]
[TimeControl "40/5400+30:900+30"]

1. d4 {[%emt 0:00:03]} d5 {[%emt 0:02:07]} 2. c4 {[%emt 0:00:12]} e6 {[%emt 0:00:03]} 3. Nf3 {[%emt 0:00:27]} Nf6 {[%emt 0:00:09]} 4. Nc3 {[%emt 0:00:06]} Nbd7 {[%emt 0:00:29]} 5. cxd5 {[%emt 0:01:15]} exd5 {[%emt 0:00:07]} 6. Bf4 {[%emt 0:00:36]} Bb4 {[%emt 0:00:58]} 7. e3 {[%emt 0:01:01]} Ne4 {[%emt 0:04:22]} 8. Qc2 {[%emt 0:00:24]} g5 {[%emt 0:12:37]} 9. Be5 {[%emt 0:01:30]} Nxe5 {[%emt 0:09:50]} 10. Nxe5 {[%emt 0:00:16]} c6 {[%emt 0:01:19]} 11. Bd3 {[%emt 0:00:36]} f6 {[%emt 0:01:41]} 12. Nf3 {[%emt 0:00:32]} Qe7 {[%emt 0:03:09]} 13. a3 {[%emt 0:13:10]} Bxc3+ {[%emt 0:09:49]} 14. bxc3 {[%emt 0:00:10]} Nd6 {[%emt 0:00:16]} 15. O-O {[%emt 0:01:23]} O-O {[%emt 0:00:07]} 16. Nd2 {[%emt 0:07:03]} f5 {[%emt 0:05:29]} 17. Nf3 {[%emt 0:06:30]} Be6 {[%emt 0:10:19]} 18. Ne5 {[%emt 0:01:04]} Nf7 {[%emt 0:01:31]} 19. f4 {[%emt 0:07:25]} Nxe5 {[%emt 0:00:39]} 20. fxe5 {[%emt 0:01:38]} Qd7 {[%emt 0:00:10]} 21. Rf2 {[%emt 0:06:35]} Rf7 {[%emt 0:00:49]} 22. Raf1 {[%emt 0:00:18]} Raf8 {[%emt 0:00:32]} 23. Qe2 {[%emt 0:05:44]} g4 {[%emt 0:09:19]} 24. c4 {[%emt 0:03:34]} Qe7 {[%emt 0:00:57]} 25. cxd5 {[%emt 0:02:10]} cxd5 {[%emt 0:00:05]} 26. Qb2 {[%emt 0:03:33]} g3 {[%emt 0:14:20]} 27. hxg3 {[%emt 0:01:20]} Qg5 {[%emt 0:00:07]} 28. Rf3 {[%emt 0:00:09]} Rg7 {[%emt 0:00:31]} 29. e4 {[%emt 0:09:49]} dxe4 {[%emt 0:05:13]} 30. Bxe4 {[%emt 0:00:08]} Rgf7 {[%emt 0:00:04]} 31. Bb1 {[%emt 0:01:17]} Qg4 {[%emt 0:06:13]} 32. Qf2 {[%emt 0:03:24]} Kh8 {[%emt 0:01:42]} 33. Rf4 {[%emt 0:01:14]} Qg5 {[%emt 0:00:12]} 34. Rh4 {[%emt 0:09:19]} Rg8 {[%emt 0:01:13]} 35. Rf4 {[%emt 0:06:09]} Rgf8 {[%emt 0:00:05]} 36. Bc2 {[%emt 0:01:52]} Bc4 {[%emt 0:00:40]} 37. Re1 {[%emt 0:00:16]} Re8 {[%emt 0:01:12]} 38. Rxf5 {[%emt 0:01:27]} Rxf5 {[%emt 0:00:04]} 39. Qxf5 {[%emt 0:00:06]} Qxf5 {[%emt 0:00:23]} 40. Bxf5 {[%emt 0:00:00]} b5 {[%emt 0:00:00]} 41. Bd7 {[%emt 0:01:03]} Re7 {[%emt 0:01:25]} 42. Bc6 {[%emt 0:00:11]} Kg7 {[%emt 0:03:34]} 43. d5 {[%emt 0:00:18]} Kf8 {[%emt 0:00:17]} 44. d6 {[%emt 0:00:35]} Re6 {[%emt 0:00:58]} 45. Rd1 {[%emt 0:00:39]} 1-0

[Event "Romanian Championship Open 2025"]
[Site "Craiova"]
[Date "2025.02.17"]
[Round "3.8"]
[White "Nastore, Pavel-Alexandru"]
[Black "Magold, Filip"]
[Result "0-1"]
[Annotator "ChessBase"]
[ECO "C07"]
[WhiteElo "2250"]
[BlackElo "2431"]
[PlyCount "76"]
[EventDate "2025.02.12"]
[EventType "swiss"]
[EventCountry "ROU"]
[SourceTitle "playchess.com"]
[Source "ChessBase"]
[SourceQuality "1"]
[TimeControl "40/5400+30:900+30"]

1. e4 {[%emt 0:00:31]} e6 {[%emt 0:00:15]} 2. d4 {[%emt 0:00:06]} d5 {[%emt 0:00:06]} 3. Nd2 {[%emt 0:00:07]} c5 {[%emt 0:00:14]} 4. Ngf3 {[%emt 0:00:27]} cxd4 {[%emt 0:01:05]} 5. Nxd4 {[%emt 0:02:56]} Nf6 {[%emt 0:00:29]} 6. e5 {[%emt 0:03:06]} Nfd7 {[%emt 0:00:12]} 7. N2f3 {[%emt 0:07:09]} Nc6 {[%emt 0:01:42]} 8. Bb5 {[%emt 0:02:23]} Qc7 {[%emt 0:17:45]} 9. O-O {[%emt 0:13:40]} a6 {[%emt 0:12:59]} 10. Nxc6 {[%emt 0:07:59]} bxc6 {[%emt 0:01:34]} 11. Ba4 {[%emt 0:00:04]} Be7 {[%emt 0:07:25]} 12. c3 {[%emt 0:08:42]} O-O {[%emt 0:00:12]} 13. Re1 {[%emt 0:00:06]} f6 {[%emt 0:08:07]} 14. exf6 {[%emt 0:08:21]} Nxf6 {[%emt 0:00:05]} 15. Nd4 {[%emt 0:04:21]} Bd6 {[%emt 0:02:48]} 16. f4 {[%emt 0:13:32]} e5 {[%emt 0:07:17]} 17. fxe5 {[%emt 0:06:24]} Bxe5 {[%emt 0:00:10]} 18. Rxe5 {[%emt 0:00:08]} Qxe5 {[%emt 0:00:06]} 19. Nxc6 {[%emt 0:00:29]} Qc7 {[%emt 0:01:46]} 20. Qd4 {[%emt 0:01:30]} Bd7 {[%emt 0:12:33]} 21. Bf4 {[%emt 0:08:01]} Qb7 {[%emt 0:00:08]} 22. Ne7+ {[%emt 0:05:59]} Kh8 {[%emt 0:00:18]} 23. Bb3 {[%emt 0:00:20]} Be6 {[%emt 0:08:43]} 24. Bd6 {[%emt 0:01:32]} Qd7 {[%emt 0:06:35]} 25. Ba3 {[%emt 0:00:26]} Rf7 {[%emt 0:01:24]} 26. Ba4 {[%emt 0:00:47]} Qc7 {[%emt 0:00:09]} 27. Nc6 {[%emt 0:03:44]} Ng4 {[%emt 0:03:56]} 28. g3 {[%emt 0:00:04]} Rf3 {[%emt 0:00:40]} 29. Re1 {[%emt 0:01:33]} Rxg3+ {[%emt 0:00:29]} 30. Kf1 {[%emt 0:00:29]} Nxh2+ {[%emt 0:01:24]} 31. Kf2 {[%emt 0:00:12]} Ng4+ {[%emt 0:01:51]} 32. Ke2 {[%emt 0:00:06]} Re3+ {[%emt 0:00:17]} 33. Kd1 {[%emt 0:00:18]} Nf2+ {[%emt 0:01:59]} 34. Kd2 {[%emt 0:01:09]} Ne4+ {[%emt 0:00:40]} 35. Kxe3 {[%emt 0:00:14]} Qg3+ {[%emt 0:00:05]} 36. Ke2 {[%emt 0:00:09]} Bg4+ {[%emt 0:00:06]} 37. Kf1 {[%emt 0:00:04]} Qf3+ {[%emt 0:00:07]} 38. Kg1 {[%emt 0:00:05]} Bh3 {[%emt 0:00:06]} 0-1

[Event "Romanian Championship Open 2025"]
[Site "Craiova"]
[Date "2025.02.17"]
[Round "3.9"]
[White "Bida, Mihai-Eugen"]
[Black "Korcsek, Alexandru-David"]
[Result "1/2-1/2"]
[Annotator "ChessBase"]
[ECO "D32"]
[WhiteElo "2413"]
[BlackElo "2127"]
[PlyCount "45"]
[EventDate "2025.02.12"]
[EventType "swiss"]
[EventCountry "ROU"]
[SourceTitle "playchess.com"]
[Source "ChessBase"]
[SourceQuality "1"]
[TimeControl "40/5400+30:900+30"]

1. d4 {[%emt 0:00:03]} d5 {[%emt 0:00:17]} 2. c4 {[%emt 0:00:06]} e6 {[%emt 0:00:06]} 3. Nc3 {[%emt 0:00:05]} c5 {[%emt 0:00:06]} 4. cxd5 {[%emt 0:00:10]} exd5 {[%emt 0:00:07]} 5. Nf3 {[%emt 0:00:05]} Nc6 {[%emt 0:00:17]} 6. dxc5 {[%emt 0:00:10]} d4 {[%emt 0:00:33]} 7. Na4 {[%emt 0:00:16]} Bxc5 {[%emt 0:00:09]} 8. Nxc5 {[%emt 0:00:05]} Qa5+ {[%emt 0:00:08]} 9. Qd2 {[%emt 0:00:07]} Qxc5 {[%emt 0:00:09]} 10. a3 {[%emt 0:00:04]} Bg4 {[%emt 0:22:35]} 11. b4 {[%emt 0:04:33]} Qd5 {[%emt 0:02:46]} 12. Bb2 {[%emt 0:00:55]} Rd8 {[%emt 0:01:25]} 13. Rd1 {[%emt 0:01:50]} Bxf3 {[%emt 0:02:01]} 14. exf3 {[%emt 0:00:32]} a6 {[%emt 0:11:34]} 15. Bd3 {[%emt 0:01:59]} Nf6 {[%emt 0:01:05]} 16. O-O {[%emt 0:00:33]} O-O {[%emt 0:00:25]} 17. Rfe1 {[%emt 0:06:41]} Rfe8 {[%emt 0:10:40]} 18. Rxe8+ {[%emt 0:00:31]} Rxe8 {[%emt 0:00:17]} 19. Bf1 {[%emt 0:00:15]} Rd8 {[%emt 0:01:22]} 20. Rc1 {[%emt 0:00:17]} h6 {[%emt 0:04:49]} 21. Bc4 {[%emt 0:07:57]} Qd6 {[%emt 0:02:59]} 22. Bd3 {[%emt 0:00:27]} Ne5 {[%emt 0:04:16]} 23. Bf1 {[%emt 0:02:40]} 1/2-1/2